Workbook

Sheet Контрагенти
A1: ЗВІТ ПРО РОЗРАХУНКИ - станом на 12.11.2016 | D1: Заголовок 1
A2: ЧП "Дождик" | D2: Стиль заголовка
A3: ООО "Радуга" | D3: Стиль примечания

Sheet Платежі (hidden)
A1: Ключ | B1: НомерДог | C1: ДатаДог | D1: Контрагент | E1: Товар | F1: План-факт | G1: Дата оплати | H1: Сума оплати | J1: =СУММЕСЛИМН([Сума оплати];[Ключ];[@Ключ];[План-факт];"План";[Дата оплати];"<"&СЕГОДНЯ())-СУММЕСЛИМН([Сума оплати];[Ключ];[@Ключ];[План-факт];"Факт")
A2: 25/06 (25.06.2016) | B2: 25/06 | C2: 2016-06-25 | D2: ЧП "Дождик" | E2: Товар1 | F2: План | G2: 2016-07-06 | H2: 762725.3
A3: 25/06 (25.06.2016) | B3: 25/06 | C3: 2016-06-25 | D3: ЧП "Дождик" | E3: Товар1 | F3: Факт | G3: 2016-07-03 | H3: 362725.3
A4: 25/06 (25.06.2016) | B4: 25/06 | C4: 2016-06-25 | D4: ЧП "Дождик" | E4: Товар1 | F4: План | G4: 2016-07-14 | H4: 1900000
A5: 25/06 (25.06.2016) | B5: 25/06 | C5: 2016-06-25 | D5: ЧП "Дождик" | E5: Товар1 | F5: Факт | G5: 2016-07-04 | H5: 200000
A6: 25/06 (25.06.2016) | B6: 25/06 | C6: 2016-06-25 | D6: ЧП "Дождик" | E6: Товар1 | F6: План | G6: 2016-07-20 | H6: 1900000
A7: 25/06 (25.06.2016) | B7: 25/06 | C7: 2016-06-25 | D7: ЧП "Дождик" | E7: Товар1 | F7: Факт | G7: 2016-07-05 | H7: 200000
A8: 25/06 (25.06.2016) | B8: 25/06 | C8: 2016-06-25 | D8: ЧП "Дождик" | E8: Товар1 | F8: Факт | G8: 2016-07-09 | H8: 400000
A9: 25/06 (25.06.2016) | B9: 25/06 | C9: 2016-06-25 | D9: ЧП "Дождик" | E9: Товар1 | F9: Факт | G9: 2016-07-10 | H9: 400000
A10: 25/06 (25.06.2016) | B10: 25/06 | C10: 2016-06-25 | D10: ЧП "Дождик" | E10: Товар1 | F10: Факт | G10: 2016-07-12 | H10: 800000
A11: 25/06 (25.06.2016) | B11: 25/06 | C11: 2016-06-25 | D11: ЧП "Дождик" | E11: Товар1 | F11: Факт | G11: 2016-07-13 | H11: 300000
A12: 25/06 (25.06.2016) | B12: 25/06 | C12: 2016-06-25 | D12: ЧП "Дождик" | E12: Товар1 | F12: Факт | G12: 2016-07-16 | H12: 400000
A13: 25/06 (25.06.2016) | B13: 25/06 | C13: 2016-06-25 | D13: ЧП "Дождик" | E13: Товар1 | F13: Факт | G13: 2016-07-17 | H13: 400000
A14: 25/06 (25.06.2016) | B14: 25/06 | C14: 2016-06-25 | D14: ЧП "Дождик" | E14: Товар1 | F14: Факт | G14: 2016-07-19 | H14: 500000
A15: 25/06 (25.06.2016) | B15: 25/06 | C15: 2016-06-25 | D15: ЧП "Дождик" | E15: Товар1 | F15: Факт | G15: 2016-07-20 | H15: 200000
A16: 25/06 (25.06.2016) | B16: 25/06 | C16: 2016-06-25 | D16: ЧП "Дождик" | E16: Товар1 | F16: Факт | G16: 2016-07-23 | H16: 200000
A17: 103/НГ (30.06.2016) | B17: 103/НГ | C17: 2016-06-30 | D17: ООО "Радуга" | E17: Товар2 | F17: План | G17: 2016-07-20 | H17: 363330.71
A18: 103/НГ (30.06.2016) | B18: 103/НГ | C18: 2016-06-30 | D18: ООО "Радуга" | E18: Товар2 | F18: Факт | G18: 2016-07-19 | H18: 400000
A19: 103/НГ (30.06.2016) | B19: 103/НГ | C19: 2016-06-30 | D19: ООО "Радуга" | E19: Товар2 | F19: План | G19: 2016-08-01 | H19: 847771.64

Sheet Договори (hidden)
A1: Ключ | B1: НомерДог | C1: ДатаДог | D1: Контрагент | E1: Товар | F1: Обсяг | G1: Ціна з ПДВ | H1: Сума з ПДВ | I1: Заборгованість | J1: Ресурс | K1: ПСГ | L1: Прострочена заборгованість | N1: =ОКРУГЛ(СУММЕСЛИМН(Payments[Сума оплати];Payments[Ключ];[@Ключ];Payments[План-факт];"План";Payments[Дата оплати];"<"&СЕГОДНЯ());2)-ОКРУГЛ(СУММЕСЛИМН(Payments[Сума оплати];Payments[Ключ];[@Ключ];Payments[План-факт];"Факт");2)
A2: 25/06 (25.06.2016) | B2: 25/06 | C2: 2016-06-25 | D2: ЧП "Дождик" | E2: Товар1 | F2: 1440 | G2: 3168.559236 | H2: =ROUND(SUMIFS(Платежі[Сума оплати],Платежі[Ключ],Договори[[#This Row],[Ключ]],Платежі[План-факт],"План"),2) -> 4562725.3 | I2: =ROUND(SUMIFS(Платежі[Сума оплати],Платежі[Ключ],Договори[[#This Row],[Ключ]],Платежі[План-факт],"План"),2)-ROUND(SUMIFS(Платежі[Сума оплати],Платежі[Ключ],Договори[[#This Row],[Ключ]],Платежі[План-факт],"Факт"),2) -> 200000 | J2: =IF(Договори[[#This Row],[Товар]]="Товар1",VLOOKUP(Договори[[#This Row],[Ключ]],#REF!,7,0),"") ->  | K2: =IFERROR(IF(VLOOKUP(Договори[[#This Row],[Ключ]],#REF!,8,0)=0,"","ПСГ"),"") ->  | L2: =ROUND(SUMIFS(Платежі[Сума оплати],Платежі[Ключ],Договори[[#This Row],[Ключ]],Платежі[План-факт],"План",Платежі[Дата оплати],"<"&TODAY()),2)-ROUND(SUMIFS(Платежі[Сума оплати],Платежі[Ключ],Договори[[#This Row],[Ключ]],Платежі[План-факт],"Факт"),2) -> 200000
A3: 103/НГ (30.06.2016) | B3: 103/НГ | C3: 2016-06-30 | D3: ООО "Радуга" | E3: Товар2 | F3: 300 | G3: 4037.007833 | H3: =ROUND(SUMIFS(Платежі[Сума оплати],Платежі[Ключ],Договори[[#This Row],[Ключ]],Платежі[План-факт],"План"),2) -> 1211102.35 | I3: =ROUND(SUMIFS(Платежі[Сума оплати],Платежі[Ключ],Договори[[#This Row],[Ключ]],Платежі[План-факт],"План"),2)-ROUND(SUMIFS(Платежі[Сума оплати],Платежі[Ключ],Договори[[#This Row],[Ключ]],Платежі[План-факт],"Факт"),2) -> 811102.35 | J3: =IF(Договори[[#This Row],[Товар]]="Товар1",VLOOKUP(Договори[[#This Row],[Ключ]],#REF!,7,0),"") ->  | K3: =IFERROR(IF(VLOOKUP(Договори[[#This Row],[Ключ]],#REF!,8,0)=0,"","ПСГ"),"") ->  | L3: =ROUND(SUMIFS(Платежі[Сума оплати],Платежі[Ключ],Договори[[#This Row],[Ключ]],Платежі[План-факт],"План",Платежі[Дата оплати],"<"&TODAY()),2)-ROUND(SUMIFS(Платежі[Сума оплати],Платежі[Ключ],Договори[[#This Row],[Ключ]],Платежі[План-факт],"Факт"),2) -> 811102.35

Sheet Звіт
A1: ЗВІТ ПРО РОЗРАХУНКИ - станом на 13.11.2016
A3: 25/06 (25.06.2016) | B3: ЧП "Дождик"
A4: Товар1 | C4: Планова дата | D4: Планова сума | E4: Дата сплати | F4: Фактична сума | G4: Заборгованість
A5: Ресурс #ССЫЛКА! | E5: 2016-07-03 | F5: 362725.3 | G5: =D5-F5 -> -362725.3
A6: Обсяг, тис.м3: | B6: 1440 | E6: 2016-07-04 | F6: 200000 | G6: =G5+D6-F6 -> -562725.3
A7: Ціна (з ПДВ), грн/тис.м3: | B7: 3168.559236 | E7: 2016-07-05 | F7: 200000 | G7: =G6+D7-F7 -> -762725.3
A8: Сума (з ПДВ), грн: | B8: 4562725.3 | C8: 2016-07-06 | D8: 762725.3 | G8: =G7+D8-F8 -> 0
A9: Поточна заборгованість, грн: | B9: 200000 | E9: 2016-07-09 | F9: 400000 | G9: =G8+D9-F9 -> -400000
A10: Дні прострочки: | E10: 2016-07-10 | F10: 400000 | G10: =G9+D10-F10 -> -800000
E11: 2016-07-12 | F11: 800000 | G11: =G10+D11-F11 -> -1600000
E12: 2016-07-13 | F12: 300000 | G12: =G11+D12-F12 -> -1900000
C13: 2016-07-14 | D13: 1900000 | G13: =G12+D13-F13 -> 0
E14: 2016-07-16 | F14: 400000 | G14: =G13+D14-F14 -> -400000
E15: 2016-07-17 | F15: 400000 | G15: =G14+D15-F15 -> -800000
E16: 2016-07-19 | F16: 500000 | G16: =G15+D16-F16 -> -1300000
C17: 2016-07-20 | D17: 1900000 | E17: 2016-07-20 | F17: 200000 | G17: =G16+D17-F17 -> 400000
E18: 2016-07-23 | F18: 200000 | G18: =G17+D18-F18 -> 200000
C19: =IF(MAX(C$5:C18)=0,"",MAX(C$5:C18)) -> 2016-07-20 | D19: =SUM(D$5:D18) -> 4562725.3 | E19: =IF(MAX(E$5:E18)=0,"",MAX(E$5:E18)) -> 2016-07-23 | F19: =SUM(F$5:F18) -> 4362725.3 | G19: =D19-F19 -> 200000
